bitfinex-derivatives/quotes_BTCF0:USTF0_20251206
["timestamp","ask_amount","ask_price","bid_price","bid_amount"]
[1765018394639,0.0288471,89561.0,89560.0,0.05744]
[1765018394944,0.0488471,89561.0,89560.0,0.05744]
[1765018395543,0.2688471,89561.0,89560.0,0.05744]
[1765018405752,0.3290809,89561.0,89560.0,0.05744]
[1765018405952,0.2688471,89561.0,89560.0,0.05744]
[1765018406452,0.2688471,89561.0,89560.0,0.02878]
[1765018406656,0.3290809,89561.0,89560.0,0.001]
[1765018408047,0.2688471,89561.0,89560.0,0.001]
[1765018409058,0.2688471,89561.0,89560.0,0.0582]
[1765018411453,0.32906179,89561.0,89560.0,0.0582]
[1765018412048,0.2688471,89561.0,89560.0,0.0582]
[1765018434588,0.26858356,89561.0,89560.0,0.0582]
[1765018435382,0.26858356,89561.0,89560.0,0.3682]
[1765018435383,0.02858356,89561.0,89560.0,0.3682]
[1765018435788,0.02741606,89561.0,89560.0,0.3682]
[1765018436286,0.00016749,89569.0,89568.0,0.0745]
[1765018437485,0.00116749,89569.0,89568.0,0.0745]
[1765018437785,0.00216749,89569.0,89568.0,0.0745]
[1765018438184,0.00116749,89569.0,89568.0,0.0745]
[1765018438391,0.00216749,89569.0,89568.0,0.0745]
[1765018439781,0.00116749,89569.0,89568.0,0.0745]
[1765018441294,0.00016749,89569.0,89568.0,0.0745]
[1765018441592,0.00116749,89569.0,89568.0,0.0745]
[1765018448290,0.02849811,89569.0,89568.0,0.0745]
[1765018453093,0.02849811,89569.0,89568.0,0.4945]
[1765018453298,0.0255411,89581.0,89580.0,0.07372]
[1765018453498,0.3999211,89581.0,89580.0,0.07372]
[1765018455006,0.3999211,89581.0,89580.0,0.07472]
[1765018456302,0.4009211,89581.0,89580.0,0.07472]
[1765018457109,0.38976,89581.0,89580.0,0.07472]
[1765018458605,0.38976,89581.0,89580.0,0.08584693]
[1765018458803,0.38976,89581.0,89580.0,0.07472]
[1765018459901,0.400921,89581.0,89580.0,0.07472]
[1765018460504,0.400921,89581.0,89580.0,0.05751]
[1765018460704,0.400921,89581.0,89580.0,0.001]
[1765018462300,0.46113569,89581.0,89580.0,0.001]
[1765018464306,0.400921,89581.0,89580.0,0.001]
[1765018465211,0.42812984,89581.0,89580.0,0.001]
[1765018488553,0.039922,89573.0,89572.0,0.05596749]
[1765018488853,0.48793752,89573.0,89572.0,0.05596749]
[1765018489858,0.48793752,89573.0,89572.0,0.05696749]
[1765018490148,0.48893752,89573.0,89572.0,0.06396749]
[1765018490353,0.48893752,89573.0,89572.0,0.03579749]
[1765018490548,0.48893752,89573.0,89572.0,0.03479749]
[1765018490751,0.48993752,89573.0,89572.0,0.03479749]
[1765018491653,0.48893752,89573.0,89572.0,0.00016749]
[1765018491848,0.49093752,89573.0,89572.0,0.00016749]
[1765018492151,0.49093752,89573.0,89572.0,0.02779749]
[1765018492348,0.49093752,89573.0,89572.0,0.05596749]
[1765018498063,0.55116241,89573.0,89572.0,0.05596749]
[1765018500165,0.55116241,89573.0,89572.0,0.07270749]
[1765018500969,0.49093752,89573.0,89572.0,0.07270749]
[1765018501167,0.55116241,89573.0,89572.0,0.07270749]
[1765018503270,0.49093752,89573.0,89572.0,0.07270749]
[1765018505871,0.49093752,89573.0,89572.0,0.05596749]
[1765018506763,0.49093752,89573.0,89572.0,0.02779749]
[1765018506970,0.49093752,89573.0,89572.0,0.00016749]
[1765018510971,0.49093752,89573.0,89572.0,0.05836749]
[1765018511368,1.00885752,89573.0,89572.0,0.05836749]
[1765018516767,0.5511769,89573.0,89572.0,0.05836749]
[1765018516972,1.0690969,89573.0,89572.0,0.05836749]
[1765018517276,1.00885752,89573.0,89572.0,0.05836749]
[1765018519478,1.0690969,89573.0,89572.0,0.05836749]
[1765018521685,1.00885752,89573.0,89572.0,0.05836749]
[1765018524387,1.0690969,89573.0,89572.0,0.05836749]
[1765018533580,1.00885752,89573.0,89572.0,0.00016749]
[1765018533787,0.0399233,89563.0,89562.0,0.07254]
[1765018533991,0.97505214,89563.0,89562.0,0.07254]
[1765018535995,0.97605214,89563.0,89562.0,0.07254]
[1765018556400,0.96488884,89563.0,89562.0,0.07254]
[1765018556597,0.95050884,89563.0,89562.0,0.07254]
[1765018557002,0.43258884,89563.0,89562.0,0.07254]
[1765018557502,0.44696884,89563.0,89562.0,0.07254]
[1765018571915,0.44680455,89563.0,89562.0,0.07254]
[1765018576822,0.43242455,89563.0,89562.0,0.07254]
[1765018577221,0.44680455,89563.0,89562.0,0.07254]
[1765018581331,0.05680455,89563.0,89562.0,0.07254]
[1765018581535,0.07680455,89563.0,89562.0,0.07254]
[1765018584237,0.05680455,89563.0,89562.0,0.07254]
[1765018590543,0.05580455,89563.0,89562.0,0.07254]
[1765018590838,0.05680455,89563.0,89562.0,0.07254]
[1765018593337,0.05580455,89563.0,89562.0,0.07254]
[1765018593542,0.05680455,89563.0,89562.0,0.07254]
[1765018594738,0.05580455,89563.0,89562.0,0.07254]
[1765018594937,0.05680455,89563.0,89562.0,0.07254]
[1765018596347,0.02976,89563.0,89562.0,0.07254]
[1765018596541,0.05584186,89563.0,89562.0,0.07254]
[1765018596741,0.05684186,89563.0,89562.0,0.07254]
[1765018609456,0.02808186,89563.0,89562.0,0.49254]
[1765018610056,0.001,89563.0,89562.0,0.49254]
[1765018610561,0.01438,89579.0,89578.0,0.0111614]
[1765018610757,0.0399208,89583.0,89582.0,0.05752]
[1765018611062,0.28684374,89583.0,89582.0,0.05752]
[1765018612669,0.28784374,89583.0,89582.0,0.05752]
[1765018613261,0.28884374,89583.0,89582.0,0.05752]
[1765018613472,0.28784374,89583.0,89582.0,0.05752]
[1765018613760,0.28884374,89583.0,89582.0,0.05752]
[1765018616364,0.27768294,89583.0,89582.0,0.05752]
[1765018621973,0.05768294,89583.0,89582.0,0.05752]
[1765018622766,0.05765194,89583.0,89582.0,0.05752]
[1765018624171,0.05665194,89583.0,89582.0,0.05752]
[1765018639478,0.09001671,89583.0,89582.0,0.05752]
[1765018639680,0.11690865,89583.0,89582.0,0.05752]
[1765018640390,0.05665194,89583.0,89582.0,0.05752]
[1765018645391,0.47665194,89583.0,89582.0,0.05752]
[1765018647792,0.47665194,89583.0,89582.0,0.07429]
[1765018652605,0.02876,89581.0,89580.0,0.02914]
[1765018652798,0.05645862,89581.0,89580.0,0.02914]
[1765018653199,0.41645862,89581.0,89580.0,0.05652]
[1765018653399,0.41645862,89581.0,89580.0,0.02914]
[1765018653701,0.41745862,89581.0,89580.0,0.02914]
[1765018654906,0.41745862,89581.0,89580.0,0.05652]
[1765018655107,0.41845862,89581.0,89580.0,0.05652]
[1765018655500,0.41745862,89581.0,89580.0,0.05652]
[1765018655700,0.41845862,89581.0,89580.0,0.05652]
[1765018655903,0.41845862,89581.0,89580.0,0.0739]
[1765018657105,0.41745862,89581.0,89580.0,0.0739]
[1765018657299,0.41845862,89581.0,89580.0,0.0739]
[1765018657505,0.15845862,89581.0,89580.0,0.0739]
[1765018657707,0.05845862,89581.0,89580.0,0.0739]
[1765018658708,0.02889194,89581.0,89580.0,0.0739]
[1765018659909,0.02789194,89581.0,89580.0,0.0739]
[1765018660115,0.02889194,89581.0,89580.0,0.0739]
[1765018660315,0.02789194,89581.0,89580.0,0.0749]
[1765018661313,0.02689194,89581.0,89580.0,0.0749]
[1765018661515,0.02876,89588.0,89587.0,0.05652]
[1765018661715,0.45661263,89588.0,89587.0,0.05652]
[1765018662820,0.45761263,89588.0,89587.0,0.05652]
[1765018663321,0.45861263,89588.0,89587.0,0.05652]
[1765018671524,0.45861263,89588.0,89587.0,0.06778808]
[1765018672427,0.45861263,89588.0,89587.0,0.05652]
[1765018680732,0.02904595,89588.0,89587.0,0.05652]
[1765018680931,0.04342595,89588.0,89587.0,0.05652]
[1765018681122,0.05780595,89588.0,89587.0,0.05652]
[1765018681936,0.06696605,89588.0,89587.0,0.03014]
[1765018682232,0.06696605,89588.0,89587.0,0.001]
[1765018682429,0.06696605,89588.0,89587.0,0.0277]
[1765018682731,0.06696605,89588.0,89587.0,0.05598]
[1765018683127,0.06696605,89588.0,89587.0,0.05498]
[1765018683328,0.06796605,89588.0,89587.0,0.05498]
[1765018684736,0.44796605,89588.0,89587.0,0.05498]
[1765018685234,0.44896605,89588.0,89587.0,0.05498]
[1765018690836,0.44796605,89588.0,89587.0,0.05498]
[1765018691037,0.44896605,89588.0,89587.0,0.05498]
[1765018703450,0.44796605,89588.0,89587.0,0.05498]
[1765018703647,0.44896605,89588.0,89587.0,0.05498]
[1765018709352,0.02876,89585.0,89584.0,0.0277]
[1765018709555,0.02876,89581.0,89580.0,0.0277]
[1765018709757,0.44661263,89581.0,89580.0,0.0277]
[1765018711458,0.44661263,89581.0,89580.0,0.05498]
[1765018711658,0.26661263,89581.0,89580.0,0.0714]
[1765018712060,0.26761263,89581.0,89580.0,0.0714]
[1765018713147,0.26861263,89581.0,89580.0,0.0714]
[1765018713859,0.26661263,89581.0,89580.0,0.0714]
[1765018714061,0.26861263,89581.0,89580.0,0.0714]
[1765018714771,0.26761263,89581.0,89580.0,0.0714]
[1765018715059,0.26861263,89581.0,89580.0,0.0714]
[1765018723278,0.05861263,89581.0,89580.0,0.0714]
[1765018724472,0.05761263,89581.0,89580.0,0.0714]
[1765018724672,0.05861263,89581.0,89580.0,0.0714]
[1765018725169,0.05780595,89581.0,89580.0,0.0714]
[1765018725374,0.04342595,89581.0,89580.0,0.0714]
[1765018725977,0.04242595,89581.0,89580.0,0.0714]
[1765018726178,0.04342595,89581.0,89580.0,0.0714]
[1765018726676,0.04242595,89581.0,89580.0,0.0714]
[1765018727072,0.04142595,89581.0,89580.0,0.0714]
[1765018727272,0.04242595,89581.0,89580.0,0.0714]
[1765018728174,0.02804595,89581.0,89580.0,0.0714]
[1765018728379,0.04242595,89581.0,89580.0,0.0714]
[1765018728774,0.05580595,89581.0,89580.0,0.0714]
[1765018728974,0.05680595,89581.0,89580.0,0.0714]
[1765018729176,0.05680595,89581.0,89580.0,0.0724]
[1765018729674,0.05580595,89581.0,89580.0,0.0724]
[1765018736680,0.02876,89581.0,89580.0,0.0724]
[1765018736884,0.05547566,89581.0,89580.0,0.0724]
[1765018744492,0.02671566,89581.0,89580.0,0.0724]
[1765018745995,0.04109566,89581.0,89580.0,0.0724]
[1765018749992,0.05547566,89581.0,89580.0,0.0724]
[1765018756100,0.04109566,89581.0,89580.0,0.0724]
[1765018756301,0.05547566,89581.0,89580.0,0.0724]
[1765018763596,0.05541729,89581.0,89580.0,0.0724]
[1765018775803,0.32541729,89581.0,89580.0,0.001]
[1765018776311,0.32541729,89581.0,89580.0,0.02867]
[1765018776509,0.32541729,89581.0,89580.0,0.05707]
[1765018777209,0.32641729,89581.0,89580.0,0.05607]
[1765018777410,0.32741729,89581.0,89580.0,0.07303]
[1765018781310,0.32741729,89581.0,89580.0,0.02767]
[1765018781517,0.32741729,89581.0,89566.0,0.0281228]
[1765018781518,0.0399223,89571.0,89570.0,0.05607]
[1765018781815,0.0399228,89567.0,89566.0,0.07303]
[1765018782011,0.06738677,89567.0,89566.0,0.07303]
[1765018782411,0.44738677,89567.0,89566.0,0.05607]
[1765018783014,0.02876,89561.0,89560.0,0.07303]
[1765018783317,0.43622397,89561.0,89560.0,0.07303]
[1765018784212,0.43722397,89561.0,89560.0,0.07303]
[1765018785918,0.43822397,89561.0,89560.0,0.07303]
[1765018786518,0.43722397,89561.0,89560.0,0.07303]
[1765018786719,0.43822397,89561.0,89560.0,0.07303]
[1765018788220,0.41156668,89561.0,89560.0,0.07303]
[1765018790220,0.03156668,89561.0,89560.0,0.07303]
[1765018792620,0.03056668,89561.0,89560.0,0.07303]
[1765018792820,0.03156668,89561.0,89560.0,0.07303]
[1765018794025,0.03056668,89561.0,89560.0,0.07303]
[1765018797723,0.03056668,89561.0,89556.0,0.01696]
[1765018797724,0.02876,89557.0,89556.0,0.04638]
[1765018798020,0.42956668,89557.0,89556.0,0.02942]
[1765018798927,0.42956668,89557.0,89556.0,0.05925]
[1765018799220,0.42956668,89557.0,89556.0,0.06025]
[1765018799812,0.43056668,89557.0,89556.0,0.06025]
[1765018800214,0.43156668,89557.0,89556.0,0.05925]
[1765018800729,0.43056668,89557.0,89556.0,0.05925]
[1765018801034,0.43156668,89557.0,89556.0,0.05925]
[1765018801415,0.43056668,89557.0,89556.0,0.0755]
[1765018801615,0.43156668,89557.0,89556.0,0.0755]
[1765018805222,0.43056668,89557.0,89556.0,0.0755]
[1765018805627,0.43156668,89557.0,89556.0,0.0755]
[1765018809521,0.43056668,89557.0,89556.0,0.0755]
[1765018809726,0.43156668,89557.0,89556.0,0.0755]
[1765018810528,0.43056668,89557.0,89556.0,0.0755]
[1765018810730,0.43156668,89557.0,89556.0,0.0755]
[1765018810931,0.20156668,89557.0,89556.0,0.0755]
[1765018811333,0.22735633,89557.0,89556.0,0.0755]
[1765018811734,0.22835633,89557.0,89556.0,0.0755]
[1765018812129,0.22735633,89557.0,89556.0,0.0755]
[1765018812536,0.45735633,89557.0,89556.0,0.0755]
[1765018818234,0.07735633,89557.0,89556.0,0.0755]
[1765018822645,0.31735633,89557.0,89556.0,0.0755]
[1765018844149,0.29056668,89557.0,89556.0,0.0755]
[1765018844352,0.31770008,89557.0,89556.0,0.0755]
[1765018853267,0.07770008,89557.0,89556.0,0.0755]
[1765018854672,0.0768934,89557.0,89556.0,0.0755]
[1765018859085,0.0568934,89557.0,89556.0,0.0755]
[1765018863688,0.0281334,89557.0,89556.0,0.0755]
[1765018863987,0.001,89557.0,89556.0,0.4655]
[1765018864580,0.02892749,89569.0,89568.0,0.07357]
[1765018864793,0.02704151,89569.0,89568.0,0.49357]
[1765018865491,0.02704151,89569.0,89568.0,0.5047326]
[1765018866490,0.04142151,89569.0,89568.0,0.5047326]
[1765018868194,0.0255442,89555.0,89554.0,0.01693]
[1765018868394,0.06677442,89555.0,89554.0,0.07357]
[1765018869492,0.06777442,89555.0,89554.0,0.07357]
[1765018883793,0.01538,89555.0,89554.0,0.07357]
[1765018883994,0.001,89555.0,89554.0,0.07357]
[1765018886697,0.01538,89555.0,89554.0,0.07357]
[1765018887095,0.001,89555.0,89554.0,0.07357]
[1765018889506,0.00023921,89555.0,89554.0,0.07357]
[1765018894210,0.00104589,89555.0,89554.0,0.07357]
[1765018894410,0.00023921,89555.0,89554.0,0.07357]
[1765018895416,0.02716423,89555.0,89554.0,0.07357]
[1765018901515,0.02692502,89555.0,89554.0,0.48357]
[1765018902012,0.00016749,89569.0,89568.0,0.07186]
[1765018902511,0.00016749,89569.0,89568.0,0.47186]
[1765018902712,0.011161,89581.0,89580.0,0.0167]
[1765018902915,0.011161,89581.0,89580.0,0.07186]
[1765018903303,0.069991,89581.0,89580.0,0.07186]
[1765018904313,0.069991,89581.0,89580.0,0.08280886]
[1765018904509,0.072991,89581.0,89580.0,0.08280886]
[1765018905117,0.070991,89581.0,89580.0,0.07186]
[1765018911917,0.0667818,89575.0,89574.0,0.07424]
[1765018912117,0.45758848,89575.0,89574.0,0.05754]
[1765018913313,0.45758848,89575.0,89574.0,0.05854]
[1765018913921,0.48394589,89575.0,89574.0,0.05854]
[1765018914718,0.48394589,89575.0,89574.0,0.05754]
[1765018914924,0.48594589,89575.0,89574.0,0.05754]
[1765018916320,0.05562,89573.0,89572.0,0.00016749]
[1765018916529,0.47278409,89573.0,89572.0,0.00016749]
[1765018916712,0.0667844,89554.0,89553.0,0.07501]
[1765018918124,0.0677844,89554.0,89553.0,0.08201]
[1765018919629,0.0667844,89554.0,89553.0,0.07501]
[1765018920418,0.00016749,89562.0,89553.0,0.07501]
[1765018920419,0.05678749,89562.0,89561.0,0.05871]
[1765018920618,0.12699212,89562.0,89561.0,0.05871]
[1765018920820,0.12699188,89562.0,89561.0,0.05871]
[1765018921128,0.18361188,89562.0,89561.0,0.05871]
[1765018921429,0.1828052,89562.0,89561.0,0.05871]
[1765018921628,0.0271852,89562.0,89561.0,0.05871]
[1765018922021,0.0545652,89562.0,89561.0,0.05871]
[1765018922221,0.0838052,89562.0,89561.0,0.05871]
[1765018922725,0.0848052,89562.0,89561.0,0.05871]
[1765018923230,0.0838052,89562.0,89561.0,0.05871]
[1765018923431,0.0828052,89562.0,89561.0,0.05871]
[1765018923729,0.0838052,89562.0,89561.0,0.05871]
[1765018924527,0.0271852,89562.0,89561.0,0.05871]
[1765018925028,0.0545652,89562.0,89561.0,0.05871]
[1765018925233,0.0838052,89562.0,89561.0,0.05871]
[1765018925932,0.0838052,89562.0,89561.0,0.05971]
[1765018926634,0.0828052,89562.0,89561.0,0.05971]
[1765018926836,0.0838052,89562.0,89561.0,0.05971]
[1765018927927,0.0828052,89562.0,89561.0,0.05971]
[1765018928330,0.05678749,89562.0,89561.0,0.05971]
[1765018931534,0.02754749,89562.0,89561.0,0.05971]
[1765018932642,0.05678749,89562.0,89561.0,0.05971]
[1765018942542,0.08283916,89562.0,89561.0,0.05971]
[1765018961659,0.02621916,89562.0,89561.0,0.44971]
[1765018962766,0.00095264,89562.0,89561.0,0.44971]
[1765018963461,0.0111622,89572.0,89562.0,0.0111634]
[1765018963655,0.0408222,89572.0,89571.0,0.07311]
[1765018963854,0.0707022,89572.0,89571.0,0.07311]
[1765018965065,0.0717022,89572.0,89571.0,0.07311]
[1765018965658,0.0727022,89572.0,89571.0,0.07311]
[1765018965964,0.0717022,89572.0,89571.0,0.07311]
[1765018966572,0.0707022,89572.0,89571.0,0.07311]
[1765018971071,0.0707022,89572.0,89571.0,0.07411]
[1765018975571,0.09653743,89572.0,89571.0,0.07411]
[1765018986583,0.09653743,89572.0,89571.0,0.001]
[1765018987274,0.09653743,89572.0,89571.0,0.03083]
[1765018987872,0.09753743,89572.0,89571.0,0.02983]
[1765018988367,0.05771,89566.0,89565.0,0.07488]
[1765018988572,0.08435191,89566.0,89565.0,0.07488]
[1765018989181,0.05851668,89566.0,89565.0,0.07488]
[1765018989379,0.08424455,89566.0,89565.0,0.05831]
[1765018989679,0.08424455,89566.0,89565.0,0.07465]
[1765018990875,0.08424455,89566.0,89565.0,0.07565]
[1765018991279,0.08424455,89566.0,89565.0,0.07465]
[1765018999689,0.08424455,89566.0,89565.0,0.05831]
[1765019002379,0.02572787,89566.0,89565.0,0.05831]
[1765019002583,0.05496787,89566.0,89565.0,0.05831]
[1765019002785,0.02572787,89566.0,89565.0,0.05831]
[1765019003489,0.05496787,89566.0,89565.0,0.05831]
[1765019003788,0.05496787,89566.0,89565.0,0.48931]
[1765019004288,0.02572787,89566.0,89565.0,0.48931]
[1765019009595,0.08343787,89566.0,89565.0,0.30931]
[1765019010793,0.08343787,89566.0,89565.0,0.05833]
[1765019012396,0.08343787,89566.0,89565.0,0.07606]
[1765019012697,0.08343787,89566.0,89565.0,0.07506]
[1765019016892,0.05496787,89566.0,89565.0,0.07506]
[1765019017098,0.02572787,89566.0,89565.0,0.07506]
[1765019017493,0.02572787,89566.0,89565.0,0.48506]
[1765019020001,0.02572787,89566.0,89565.0,0.48606]
[1765019020206,0.02672787,89566.0,89565.0,0.49206]
[1765019025703,0.08422787,89566.0,89565.0,0.49206]
[1765019026808,0.08422787,89566.0,89565.0,0.08206]
[1765019037120,0.05611787,89566.0,89565.0,0.08206]
[1765019037326,0.02672787,89566.0,89565.0,0.50206]
[1765019041934,0.05606787,89566.0,89565.0,0.50206]
[1765019043128,0.02672787,89566.0,89565.0,0.50206]
[1765019043429,0.08323787,89566.0,89565.0,0.08206]
[1765019043638,0.08323787,89566.0,89565.0,0.13206]
[1765019045339,0.08323787,89566.0,89565.0,0.08206]
[1765019064948,0.48323787,89566.0,89565.0,0.08206]
[1765019068854,0.48323787,89566.0,89565.0,0.06433]
[1765019069053,0.48323787,89566.0,89565.0,0.007]
[1765019069260,0.06997,89564.0,89563.0,0.00016749]
[1765019069561,0.05651,89551.0,89550.0,0.07508]
[1765019069736,0.0676747,89551.0,89550.0,0.07508]
[1765019070942,0.0686747,89551.0,89550.0,0.08308]
[1765019072441,0.0686747,89551.0,89550.0,0.07508]
[1765019072442,0.0676747,89551.0,89550.0,0.07508]
[1765019090947,0.0111647,89551.0,89550.0,0.07508]
[1765019091155,0.0399947,89551.0,89550.0,0.07508]
[1765019093056,0.0672047,89551.0,89550.0,0.07508]
[1765019098471,0.09332186,89551.0,89550.0,0.07508]
[1765019098853,0.06611186,89551.0,89550.0,0.07508]
[1765019100057,0.09332186,89551.0,89550.0,0.07508]
[1765019109965,0.06611186,89551.0,89550.0,0.07508]
[1765019110263,0.02611716,89551.0,89550.0,0.07508]
[1765019110763,0.05556716,89551.0,89550.0,0.07508]
[1765019114867,0.08482716,89551.0,89550.0,0.07508]
[1765019116363,0.05871,89551.0,89550.0,0.07508]
[1765019117163,0.05971,89551.0,89550.0,0.07508]
[1765019145406,0.08574037,89551.0,89550.0,0.07508]
[1765019151516,0.08574037,89551.0,89550.0,0.05784]
[1765019152514,0.08574037,89551.0,89550.0,0.0754]
[1765019158122,0.08574037,89551.0,89550.0,0.0865649]
[1765019159424,0.08574037,89551.0,89550.0,0.4165649]
[1765019161222,0.08574037,89551.0,89550.0,0.0690049]
[1765019161423,0.08574037,89551.0,89550.0,0.0399649]
[1765019161724,0.08574037,89551.0,89550.0,0.0678749]
[1765019163523,0.08574037,89551.0,89550.0,0.0855849]
[1765019166817,0.05648037,89551.0,89550.0,0.0855849]
[1765019167119,0.02703037,89551.0,89550.0,0.0855849]
[1765019167319,0.05558037,89551.0,89550.0,0.0855849]
[1765019167516,0.08285037,89551.0,89550.0,0.0855849]
[1765019169928,0.08285037,89551.0,89550.0,0.07442]
[1765019170123,0.08285037,89551.0,89545.0,0.00014499]
[1765019170124,0.05582,89546.0,89545.0,0.00014499]
[1765019170329,0.05662668,89546.0,89545.0,0.00014499]
[1765019170623,0.08259991,89546.0,89545.0,0.03002499]
[1765019170932,0.09376531,89546.0,89545.0,0.05793499]
[1765019171124,0.09376531,89546.0,89545.0,0.00014499]
[1765019171125,0.44376531,89546.0,89545.0,0.00014499]
[1765019171527,0.44476531,89546.0,89545.0,0.00414499]
[1765019171923,0.44476531,89546.0,89545.0,0.00514499]
[1765019172324,0.44476531,89546.0,89545.0,0.03502499]
[1765019173529,0.44376531,89546.0,89545.0,0.03102499]
[1765019173734,0.44676531,89546.0,89545.0,0.03102499]
[1765019173936,0.44676531,89546.0,89545.0,0.05893499]
[1765019174538,0.09676531,89546.0,89545.0,0.05893499]
[1765019177335,0.07079208,89546.0,89545.0,0.05893499]
[1765019182945,0.0699854,89546.0,89545.0,0.05893499]
[1765019183141,0.05882,89546.0,89545.0,0.05893499]
[1765019188556,0.08477423,89546.0,89545.0,0.05893499]
[1765019189456,0.02895423,89546.0,89545.0,0.43893499]
[1765019191158,0.05797423,89546.0,89545.0,0.43893499]
[1765019191358,0.08570423,89546.0,89545.0,0.07893499]
[1765019191544,0.08570423,89546.0,89545.0,0.05893499]
[1765019198657,0.05975,89546.0,89545.0,0.05893499]
[1765019207066,0.003,89546.0,89545.0,0.05893499]
[1765019207856,0.05975,89546.0,89545.0,0.05893499]
[1765019214466,0.05975,89546.0,89545.0,0.45893499]
[1765019218776,0.0855698,89546.0,89545.0,0.45893499]
[1765019221685,0.0855698,89546.0,89545.0,0.00114499]
[1765019221686,0.4355698,89546.0,89545.0,0.00114499]
[1765019221880,0.4355698,89546.0,89545.0,0.02971499]
[1765019222180,0.4355698,89546.0,89545.0,0.05813499]
[1765019234178,0.1455698,89546.0,89545.0,0.05813499]
[1765019234785,0.05975,89546.0,89545.0,0.05813499]
[1765019238594,0.08551542,89546.0,89545.0,0.05813499]
[1765019240297,0.05975,89546.0,89545.0,0.05813499]
[1765019240883,0.003,89546.0,89545.0,0.05813499]
[1765019244499,0.03106,89546.0,89545.0,0.34813499]
[1765019245300,0.003,89546.0,89545.0,0.34813499]
[1765019245805,0.03106,89546.0,89545.0,0.34813499]
[1765019248001,0.003,89546.0,89545.0,0.34813499]
[1765019249297,0.02876933,89546.0,89545.0,0.34813499]
[1765019250399,0.00016749,89559.0,89558.0,0.0660539]
[1765019250594,0.00097417,89559.0,89558.0,0.0660539]
[1765019250788,0.0261016,89559.0,89558.0,0.4560539]
[1765019251099,0.00016749,89559.0,89558.0,0.4560539]
[1765019251495,0.00116749,89559.0,89558.0,0.4560539]
[1765019251889,0.00116749,89559.0,89558.0,0.4570539]
[1765019252203,0.00516749,89559.0,89558.0,0.4570539]
[1765019253496,0.00516749,89559.0,89558.0,0.4610539]
[1765019253497,0.00216749,89559.0,89558.0,0.4610539]
[1765019253901,0.00116749,89559.0,89558.0,0.4610539]
[1765019254199,0.00116749,89559.0,89558.0,0.4620539]
[1765019254996,0.00116749,89559.0,89558.0,0.4610539]
[1765019255199,0.00116749,89559.0,89558.0,0.4620539]
[1765019258504,0.0702518,89575.0,89574.0,0.07152]
[1765019258706,0.45612478,89575.0,89574.0,0.07152]
[1765019259210,0.45612478,89575.0,89574.0,0.08285114]
[1765019259601,0.45812478,89575.0,89574.0,0.08285114]
[1765019260104,0.45912478,89575.0,89574.0,0.08285114]
[1765019262313,0.08866298,89575.0,89574.0,0.08285114]
[1765019262494,0.02887298,89575.0,89574.0,0.08285114]
[1765019262698,0.08796298,89575.0,89574.0,0.08285114]
[1765019263302,0.06209,89575.0,89574.0,0.08285114]
[1765019263701,0.06009,89575.0,89574.0,0.08885114]
[1765019264202,0.05909,89575.0,89574.0,0.08385114]
[1765019264506,0.05909,89575.0,89574.0,0.08585114]
[1765019266300,0.05909,89575.0,89574.0,0.08285114]
[1765019266499,0.05909,89575.0,89574.0,0.08585114]
[1765019268801,0.08494785,89575.0,89574.0,0.08585114]
[1765019269398,0.08494785,89575.0,89574.0,0.08285114]
[1765019269600,0.08494785,89575.0,89574.0,0.08585114]
[1765019274810,0.02995749,89583.0,89582.0,0.05489]
[1765019275009,0.12381106,89583.0,89582.0,0.21952083]
[1765019275204,0.36381106,89583.0,89582.0,0.0660509]
[1765019276115,0.36481106,89583.0,89582.0,0.0660509]
[1765019276607,0.311,89583.0,89582.0,0.0660509]
[1765019276812,0.031,89583.0,89582.0,0.0660509]
[1765019277707,0.001,89583.0,89582.0,0.0660509]
[1765019278305,0.001,89583.0,89582.0,0.4760509]
[1765019278500,0.00016749,89591.0,89590.0,0.0684799]
[1765019280013,0.00016749,89591.0,89590.0,0.0694799]
[1765019280213,0.00116749,89591.0,89590.0,0.0744799]
[1765019281512,0.00116749,89591.0,89590.0,0.4444799]
[1765019286615,0.057129,89606.0,89605.0,0.068618]
[1765019286916,0.08245588,89606.0,89605.0,0.068618]
[1765019287114,0.02560588,89606.0,89605.0,0.068618]
[1765019287312,0.000279,89606.0,89605.0,0.068618]
[1765019287919,0.029439,89606.0,89605.0,0.068618]
[1765019288118,0.059179,89606.0,89605.0,0.068618]
[1765019288316,0.060179,89606.0,89605.0,0.068618]
[1765019289218,0.061179,89606.0,89605.0,0.068618]
[1765019290213,0.060179,89606.0,89605.0,0.05746]
[1765019290409,0.0589,89602.0,89601.0,0.02984]
[1765019290612,0.40196518,89602.0,89598.0,0.05874]
[1765019290813,0.05970668,89599.0,89598.0,0.05874]
[1765019292414,0.05970668,89599.0,89597.0,0.00016749]
[1765019292415,0.0111589,89598.0,89597.0,0.00016749]
[1765019292719,0.49617351,89598.0,89597.0,0.00016749]
[1765019293617,0.0589,89581.0,89580.0,0.05874]
[1765019293824,0.4689,89581.0,89580.0,0.05874]
[1765019294619,0.0589,89574.0,89573.0,0.0699019]
[1765019297324,0.0589,89574.0,89573.0,0.05874]
[1765019302127,0.0589,89574.0,89572.0,0.02856949]
[1765019302128,0.0111602,89588.0,89574.0,0.0111619]
[1765019302330,0.0589,89577.0,89576.0,0.07598]
[1765019302831,0.070061,89582.0,89581.0,0.05874]
[1765019303031,0.080061,89582.0,89581.0,0.05874]
[1765019303632,0.070061,89582.0,89581.0,0.05874]
[1765019306628,0.0589,89582.0,89581.0,0.05874]
[1765019308432,0.0700604,89586.0,89585.0,0.05874]
[1765019309534,0.02932749,89589.0,89588.0,0.07598]
[1765019309833,0.08338685,89589.0,89588.0,0.07598]
[1765019310238,0.46338685,89589.0,89588.0,0.07598]
[1765019311332,0.46338685,89589.0,89588.0,0.02984]
[1765019311634,0.46438685,89589.0,89588.0,0.02984]
[1765019312427,0.46438685,89589.0,89588.0,0.05834]
[1765019312828,0.46538685,89589.0,89588.0,0.05834]
[1765019313022,0.46638685,89589.0,89588.0,0.05834]
[1765019313637,0.46438685,89589.0,89588.0,0.05834]
[1765019313838,0.46538685,89589.0,89588.0,0.05834]
[1765019314224,0.0565,89581.0,89580.0,0.05795]
[1765019314426,0.05730668,89581.0,89580.0,0.05795]
[1765019314629,0.06846768,89581.0,89580.0,0.05795]
[1765019315839,0.067662,89573.0,89572.0,0.05811749]
[1765019316030,0.49846868,89573.0,89572.0,0.05811749]
[1765019316528,0.49846868,89573.0,89572.0,0.07476749]